[Event "Early-Titled-Tuesday-Blitz-February-13-2024"]
[Site "Chess.com"]
[Date "2024.02.13"]
[Round "7"]
[White "dropstoneDP"]
[Black "VladimirKramnik"]
[Result "1-0"]
[WhiteElo "3071"]
[BlackElo "2925"]
[TimeControl "180+1"]
[EndTime "9:21:23 PST"]
[Termination "dropstoneDP won on time"]

1. e4 {[%clk 0:02:42.6]} 1... e6 {[%clk 0:02:58.3]} 2. d4 {[%clk 0:02:42.4]}
2... d5 {[%clk 0:02:58]} 3. e5 {[%clk 0:02:38.6]} 3... c5 {[%clk 0:02:56.5]} 4.
c3 {[%clk 0:02:39.1]} 4... Nc6 {[%clk 0:02:57]} 5. Nf3 {[%clk 0:02:39.6]} 5...
Bd7 {[%clk 0:02:57.6]} 6. Be2 {[%clk 0:02:39.3]} 6... Nge7 {[%clk 0:02:57.6]} 7.
O-O {[%clk 0:02:38.2]} 7... cxd4 {[%clk 0:02:57.5]} 8. cxd4 {[%clk 0:02:37.9]}
8... Nf5 {[%clk 0:02:58]} 9. Nc3 {[%clk 0:02:28.6]} 9... a6 {[%clk 0:02:58.1]}
10. a3 {[%clk 0:02:13.2]} 10... Rc8 {[%clk 0:02:54.9]} 11. Bf4 {[%clk
0:02:06.7]} 11... Be7 {[%clk 0:02:45.2]} 12. g4 {[%clk 0:02:02.6]} 12... Nh4
{[%clk 0:02:38.8]} 13. Nxh4 {[%clk 0:02:03]} 13... Bxh4 {[%clk 0:02:39.3]} 14.
Rc1 {[%clk 0:01:59]} 14... O-O {[%clk 0:02:31.7]} 15. Na4 {[%clk 0:01:32.9]}
15... f6 {[%clk 0:02:24]} 16. exf6 {[%clk 0:01:23.8]} 16... Bxf6 {[%clk
0:02:03.8]} 17. Bd6 {[%clk 0:01:12.5]} 17... Nxd4 {[%clk 0:01:51.6]} 18. Rxc8
{[%clk 0:01:08.7]} 18... Qxc8 {[%clk 0:01:50.8]} 19. Nb6 {[%clk 0:00:57.3]}
19... Qc6 {[%clk 0:01:49.1]} 20. Nxd7 {[%clk 0:00:56.2]} 20... Qxd7 {[%clk
0:01:34.6]} 21. Bxf8 {[%clk 0:00:56]} 21... Kxf8 {[%clk 0:01:35.3]} 22. g5
{[%clk 0:00:55.6]} 22... Nxe2+ {[%clk 0:01:31.6]} 23. Qxe2 {[%clk 0:00:56.5]}
23... Bxg5 {[%clk 0:01:31.9]} 24. Re1 {[%clk 0:00:57.1]} 24... Ke7 {[%clk
0:01:19.7]} 25. Qg4 {[%clk 0:00:29.3]} 25... Bf6 {[%clk 0:01:18.6]} 26. Qb4+
{[%clk 0:00:26.7]} 26... Kf7 {[%clk 0:01:14.4]} 27. Rc1 {[%clk 0:00:27.2]} 27...
e5 {[%clk 0:01:12.2]} 28. Qb3 {[%clk 0:00:15.3]} 28... b5 {[%clk 0:00:40.3]} 29.
Rd1 {[%clk 0:00:15.1]} 29... Qg4+ {[%clk 0:00:40.1]} 30. Kf1 {[%clk 0:00:14.9]}
30... Qc4+ {[%clk 0:00:38.5]} 31. Qxc4 {[%clk 0:00:14.6]} 31... dxc4 {[%clk
0:00:39.1]} 32. Rd6 {[%clk 0:00:14.5]} 32... e4 {[%clk 0:00:38.9]} 33. Rxa6
{[%clk 0:00:14.1]} 33... Bxb2 {[%clk 0:00:38.5]} 34. Ke2 {[%clk 0:00:13]} 34...
Bd4 {[%clk 0:00:35]} 35. Ra5 {[%clk 0:00:09.5]} 35... c3 {[%clk 0:00:27.2]} 36.
Rxb5 {[%clk 0:00:10.1]} 36... Ke6 {[%clk 0:00:24.2]} 37. Rb7 {[%clk 0:00:03.5]}
37... Kd6 {[%clk 0:00:23.2]} 38. a4 {[%clk 0:00:02.2]} 38... Bxf2 {[%clk
0:00:19.5]} 39. Rb3 {[%clk 0:00:02]} 39... Bd4 {[%clk 0:00:18.2]} 40. a5 {[%clk
0:00:02.5]} 40... Kc5 {[%clk 0:00:13.4]} 41. a6 {[%clk 0:00:02.6]} 41... Kc4
{[%clk 0:00:13.6]} 42. Rb7 {[%clk 0:00:02.9]} 42... c2 {[%clk 0:00:07.4]} 43.
Rc7+ {[%clk 0:00:03.4]} 43... Kb3 {[%clk 0:00:06.6]} 44. Kd2 {[%clk 0:00:03.9]}
44... e3+ {[%clk 0:00:06.6]} 45. Kd3 {[%clk 0:00:04.4]} 45... e2 {[%clk
0:00:04.4]} 46. Kxe2 {[%clk 0:00:05]} 46... Kb2 {[%clk 0:00:03.7]} 47. Kd2
{[%clk 0:00:05.2]} 47... c1=Q+ {[%clk 0:00:01.8]} 48. Rxc1 {[%clk 0:00:05.6]}
1-0

[Event "Early-Titled-Tuesday-Blitz-February-13-2024"]
[Site "Chess.com"]
[Date "2024.02.13"]
[Round "7"]
[White "Korchmar_Vasiliy"]
[Black "Jaka_Brilej"]
[Result "1-0"]
[WhiteElo "2733"]
[BlackElo "2539"]
[TimeControl "180+1"]
[EndTime "9:21:23 PST"]
[Termination "Korchmar_Vasiliy won by checkmate"]

1. Nf3 {[%clk 0:03:00.9]} 1... Nf6 {[%clk 0:02:56]} 2. g3 {[%clk 0:03:01.2]}
2... g6 {[%clk 0:02:56.2]} 3. Bg2 {[%clk 0:03:01.6]} 3... Bg7 {[%clk 0:02:56.9]}
4. O-O {[%clk 0:03:01.8]} 4... O-O {[%clk 0:02:57.5]} 5. d3 {[%clk 0:02:59.8]}
5... d5 {[%clk 0:02:54.6]} 6. Nbd2 {[%clk 0:02:57.2]} 6... c5 {[%clk 0:02:54.1]}
7. e4 {[%clk 0:02:56.5]} 7... Nc6 {[%clk 0:02:51]} 8. c3 {[%clk 0:02:45.5]} 8...
e5 {[%clk 0:02:49.2]} 9. exd5 {[%clk 0:02:43.9]} 9... Nxd5 {[%clk 0:02:49.1]}
10. Re1 {[%clk 0:02:43.1]} 10... b6 {[%clk 0:02:39.6]} 11. Nc4 {[%clk
0:02:36.7]} 11... Re8 {[%clk 0:02:36.5]} 12. Ng5 {[%clk 0:02:22]} 12... Ba6
{[%clk 0:01:48.1]} 13. Nxf7 {[%clk 0:02:08.4]} 13... Kxf7 {[%clk 0:01:45.9]} 14.
Qf3+ {[%clk 0:02:08.2]} 14... Ke6 {[%clk 0:01:46.2]} 15. Ne3 {[%clk 0:01:59.4]}
15... Nde7 {[%clk 0:01:37]} 16. Nc4 {[%clk 0:01:32.7]} 16... Kd7 {[%clk
0:01:22.4]} 17. Bg5 {[%clk 0:01:30.8]} 17... Bb7 {[%clk 0:01:22.6]} 18. Qf7
{[%clk 0:01:15.2]} 18... h6 {[%clk 0:01:00.7]} 19. Bd2 {[%clk 0:01:02.6]} 19...
Bh8 {[%clk 0:00:58.3]} 20. b4 {[%clk 0:01:03.2]} 20... Rf8 {[%clk 0:00:47.9]}
21. Qh7 {[%clk 0:01:03.4]} 21... Qe8 {[%clk 0:00:33]} 22. bxc5 {[%clk
0:00:48.2]} 22... bxc5 {[%clk 0:00:33]} 23. Rab1 {[%clk 0:00:47.5]} 23... Kc7
{[%clk 0:00:33.4]} 24. Rxb7+ {[%clk 0:00:44.6]} 24... Kxb7 {[%clk 0:00:29.4]}
25. Nd6+ {[%clk 0:00:44.5]} 25... Kc7 {[%clk 0:00:28.9]} 26. Nxe8+ {[%clk
0:00:45.4]} 26... Raxe8 {[%clk 0:00:29.1]} 27. Qxh6 {[%clk 0:00:42.2]} 27... Bf6
{[%clk 0:00:25.3]} 28. Qe3 {[%clk 0:00:37.3]} 28... Rd8 {[%clk 0:00:25.1]} 29.
Qxc5 {[%clk 0:00:37.1]} 29... Rxd3 {[%clk 0:00:25.6]} 30. Bxc6 {[%clk
0:00:32.5]} 30... Rxd2 {[%clk 0:00:19.5]} 31. Bf3+ {[%clk 0:00:32.5]} 31... Kd8
{[%clk 0:00:19.5]} 32. Rb1 {[%clk 0:00:30.9]} 32... Ke8 {[%clk 0:00:19.1]} 33.
Rb8+ {[%clk 0:00:24.9]} 33... Kf7 {[%clk 0:00:19.4]} 34. Rxf8+ {[%clk
0:00:25.8]} 34... Kxf8 {[%clk 0:00:20.3]} 35. Qxa7 {[%clk 0:00:25.8]} 35... Rc2
{[%clk 0:00:19.4]} 36. Qe3 {[%clk 0:00:15]} 36... Nf5 {[%clk 0:00:15.5]} 37.
Qc5+ {[%clk 0:00:14]} 37... Kg7 {[%clk 0:00:16.2]} 38. a4 {[%clk 0:00:13.5]}
38... Rc1+ {[%clk 0:00:11.1]} 39. Kg2 {[%clk 0:00:12.9]} 39... Re1 {[%clk
0:00:12]} 40. Qd5 {[%clk 0:00:08.4]} 40... Ne7 {[%clk 0:00:09.8]} 41. Qb7 {[%clk
0:00:07.9]} 41... Rc1 {[%clk 0:00:06.6]} 42. a5 {[%clk 0:00:07.8]} 42... Rxc3
{[%clk 0:00:06.6]} 43. a6 {[%clk 0:00:08.4]} 43... Kh6 {[%clk 0:00:05.4]} 44. a7
{[%clk 0:00:08.4]} 44... e4 {[%clk 0:00:06.3]} 45. Bxe4 {[%clk 0:00:07.5]} 45...
Ra3 {[%clk 0:00:05]} 46. a8=Q {[%clk 0:00:08.1]} 46... Rxa8 {[%clk 0:00:05.5]}
47. Qxa8 {[%clk 0:00:09]} 47... Nf5 {[%clk 0:00:06]} 48. Bxf5 {[%clk 0:00:07.8]}
48... gxf5 {[%clk 0:00:06.9]} 49. Qf3 {[%clk 0:00:07.6]} 49... Kg6 {[%clk
0:00:07.8]} 50. h3 {[%clk 0:00:06.4]} 50... Bg7 {[%clk 0:00:08.7]} 51. g4 {[%clk
0:00:06.7]} 51... f4 {[%clk 0:00:09.1]} 52. Qxf4 {[%clk 0:00:06.3]} 52... Kh7
{[%clk 0:00:10]} 53. Qf5+ {[%clk 0:00:06.6]} 53... Kh8 {[%clk 0:00:09.9]} 54.
Qh5+ {[%clk 0:00:07.5]} 54... Bh6 {[%clk 0:00:10.3]} 55. Qxh6+ {[%clk
0:00:06.6]} 55... Kg8 {[%clk 0:00:11.2]} 56. Qd6 {[%clk 0:00:06.9]} 56... Kf7
{[%clk 0:00:12.1]} 57. Kf3 {[%clk 0:00:07]} 57... Kg8 {[%clk 0:00:13]} 58. Kf4
{[%clk 0:00:07.6]} 58... Kf7 {[%clk 0:00:13.9]} 59. Kf5 {[%clk 0:00:08]} 59...
Kg8 {[%clk 0:00:14.8]} 60. Kg6 {[%clk 0:00:08.2]} 60... Kh8 {[%clk 0:00:14.7]}
61. Qf8# {[%clk 0:00:08.8]} 1-0

[Event "Early-Titled-Tuesday-Blitz-February-13-2024"]
[Site "Chess.com"]
[Date "2024.02.13"]
[Round "7"]
[White "KetiTsatsalashvili"]
[Black "Mikhail_Golubev"]
[Result "0-1"]
[WhiteElo "2463"]
[BlackElo "2679"]
[TimeControl "180+1"]
[EndTime "9:21:23 PST"]
[Termination "Mikhail_Golubev won by checkmate"]

1. d4 {[%clk 0:03:00.9]} 1... Nf6 {[%clk 0:02:59.5]} 2. Nf3 {[%clk 0:03:00.1]}
2... d6 {[%clk 0:02:59.2]} 3. c4 {[%clk 0:02:59.1]} 3... g6 {[%clk 0:02:58.8]}
4. Nc3 {[%clk 0:02:58.7]} 4... Bg7 {[%clk 0:02:59.3]} 5. e4 {[%clk 0:02:58.1]}
5... O-O {[%clk 0:02:59.2]} 6. Be2 {[%clk 0:02:58]} 6... e5 {[%clk 0:02:59]} 7.
O-O {[%clk 0:02:57.5]} 7... h6 {[%clk 0:02:55.8]} 8. d5 {[%clk 0:02:51.9]} 8...
a5 {[%clk 0:02:45.3]} 9. Nd2 {[%clk 0:02:43.9]} 9... Nh7 {[%clk 0:02:38.7]} 10.
a3 {[%clk 0:02:38.8]} 10... f5 {[%clk 0:02:33.1]} 11. Rb1 {[%clk 0:02:39]} 11...
Nf6 {[%clk 0:02:25.2]} 12. b4 {[%clk 0:02:33.7]} 12... axb4 {[%clk 0:02:23.6]}
13. axb4 {[%clk 0:02:34.6]} 13... f4 {[%clk 0:02:10.7]} 14. c5 {[%clk
0:02:26.2]} 14... g5 {[%clk 0:02:10]} 15. f3 {[%clk 0:02:26.3]} 15... h5 {[%clk
0:01:47.8]} 16. h3 {[%clk 0:02:25.6]} 16... g4 {[%clk 0:01:41.8]} 17. hxg4
{[%clk 0:02:23.1]} 17... hxg4 {[%clk 0:01:42.7]} 18. fxg4 {[%clk 0:02:22.2]}
18... Nh7 {[%clk 0:01:30.1]} 19. cxd6 {[%clk 0:02:09.6]} 19... cxd6 {[%clk
0:01:29.1]} 20. Nc4 {[%clk 0:02:10.2]} 20... Bf6 {[%clk 0:01:27.7]} 21. g5
{[%clk 0:02:03.9]} 21... Nxg5 {[%clk 0:01:07.4]} 22. Bg4 {[%clk 0:02:01.4]}
22... Qc7 {[%clk 0:00:44.2]} 23. Be2 {[%clk 0:01:14.2]} 23... f3 {[%clk
0:00:43.9]} 24. Rxf3 {[%clk 0:00:35.4]} 24... Nxf3+ {[%clk 0:00:43.6]} 25. gxf3
{[%clk 0:00:36]} 25... Qg7+ {[%clk 0:00:36.1]} 26. Kf2 {[%clk 0:00:34]} 26... b5
{[%clk 0:00:26.5]} 27. Nxb5 {[%clk 0:00:31.6]} 27... Bh4+ {[%clk 0:00:21.2]} 28.
Ke3 {[%clk 0:00:31.6]} 28... Ba6 {[%clk 0:00:21]} 29. Nbxd6 {[%clk 0:00:29.2]}
29... Bxc4 {[%clk 0:00:18.8]} 30. Nxc4 {[%clk 0:00:27.9]} 30... Nd7 {[%clk
0:00:17.3]} 31. Kd3 {[%clk 0:00:27.1]} 31... Rfb8 {[%clk 0:00:13]} 32. Be3
{[%clk 0:00:25.4]} 32... Bg5 {[%clk 0:00:12.4]} 33. Qd2 {[%clk 0:00:24]} 33...
Nc5+ {[%clk 0:00:07.8]} 34. Bxc5 {[%clk 0:00:15]} 34... Bxd2 {[%clk 0:00:07]}
35. Nxd2 {[%clk 0:00:14.9]} 35... Ra3+ {[%clk 0:00:06.4]} 36. Kc2 {[%clk
0:00:14.8]} 36... Ra2+ {[%clk 0:00:06.5]} 37. Kd3 {[%clk 0:00:14.6]} 37... Rc8
{[%clk 0:00:06.2]} 38. Rg1 {[%clk 0:00:14.2]} 38... Qxg1 {[%clk 0:00:05.8]} 39.
Bxg1 {[%clk 0:00:15.1]} 39... Ra3+ {[%clk 0:00:05.4]} 40. Nb3 {[%clk 0:00:13]}
40... Rxb3+ {[%clk 0:00:05.6]} 41. Kd2 {[%clk 0:00:13.9]} 41... Rb2+ {[%clk
0:00:06]} 42. Ke3 {[%clk 0:00:12.6]} 42... Rcc2 {[%clk 0:00:04.9]} 43. Bd3
{[%clk 0:00:11]} 43... Rg2 {[%clk 0:00:04.8]} 44. b5 {[%clk 0:00:10.8]} 44...
Rxg1 {[%clk 0:00:04.6]} 45. f4 {[%clk 0:00:11.5]} 45... Re1+ {[%clk 0:00:04.7]}
46. Kf3 {[%clk 0:00:11.1]} 46... Rb3 {[%clk 0:00:05.1]} 47. fxe5 {[%clk
0:00:10.5]} 47... Rxd3+ {[%clk 0:00:05.3]} 48. Kf4 {[%clk 0:00:11.4]} 48... Rf1+
{[%clk 0:00:05.3]} 49. Kg5 {[%clk 0:00:11.7]} 49... Rd2 {[%clk 0:00:05.5]} 50.
Kh4 {[%clk 0:00:10.5]} 50... Rg2 {[%clk 0:00:05.3]} 51. Kh3 {[%clk 0:00:10.8]}
51... Rg7 {[%clk 0:00:04.7]} 52. Kh2 {[%clk 0:00:11.3]} 52... Rf2+ {[%clk
0:00:04.6]} 53. Kh3 {[%clk 0:00:10.8]} 53... Rf3+ {[%clk 0:00:04.8]} 54. Kh2
{[%clk 0:00:11.3]} 54... Rf4 {[%clk 0:00:05]} 55. Kh3 {[%clk 0:00:11.3]} 55...
Rxe4 {[%clk 0:00:05.1]} 56. e6 {[%clk 0:00:11.7]} 56... Re5 {[%clk 0:00:05.1]}
57. b6 {[%clk 0:00:10.6]} 57... Rh5# {[%clk 0:00:04.8]} 0-1

[Event "Early-Titled-Tuesday-Blitz-February-13-2024"]
[Site "Chess.com"]
[Date "2024.02.13"]
[Round "7"]
[White "HansOnTwitch"]
[Black "platy3"]
[Result "1-0"]
[WhiteElo "3165"]
[BlackElo "2933"]
[TimeControl "180+1"]
[EndTime "9:21:24 PST"]
[Termination "HansOnTwitch won on time"]

1. e4 {[%clk 0:03:00.9]} 1... c5 {[%clk 0:03:00]} 2. Nf3 {[%clk 0:03:00.3]} 2...
e6 {[%clk 0:03:00.4]} 3. b3 {[%clk 0:02:59.9]} 3... b6 {[%clk 0:02:57.5]} 4. d4
{[%clk 0:02:59.1]} 4... cxd4 {[%clk 0:02:51.5]} 5. Nxd4 {[%clk 0:03:00]} 5...
Bb7 {[%clk 0:02:51.6]} 6. Nd2 {[%clk 0:02:59.8]} 6... Qc7 {[%clk 0:02:48.9]} 7.
Bb2 {[%clk 0:02:59.5]} 7... Nf6 {[%clk 0:02:46.5]} 8. Bd3 {[%clk 0:02:51.3]}
8... a6 {[%clk 0:02:44.2]} 9. Qe2 {[%clk 0:02:49.5]} 9... d6 {[%clk 0:02:38.6]}
10. g4 {[%clk 0:02:45.7]} 10... h6 {[%clk 0:02:32.4]} 11. h4 {[%clk 0:02:42.9]}
11... Nbd7 {[%clk 0:02:32.1]} 12. O-O-O {[%clk 0:02:39.5]} 12... Nc5 {[%clk
0:02:24.2]} 13. Kb1 {[%clk 0:02:27.9]} 13... Nfd7 {[%clk 0:02:22.1]} 14. Rc1
{[%clk 0:02:10.5]} 14... b5 {[%clk 0:02:21.2]} 15. f4 {[%clk 0:01:59.6]} 15...
Qb6 {[%clk 0:02:21.1]} 16. g5 {[%clk 0:01:51.6]} 16... Be7 {[%clk 0:02:14.3]}
17. N4f3 {[%clk 0:01:45.4]} 17... Rg8 {[%clk 0:02:10.5]} 18. Rcg1 {[%clk
0:01:30.8]} 18... O-O-O {[%clk 0:02:10]} 19. g6 {[%clk 0:01:28.6]} 19... f6
{[%clk 0:02:03.2]} 20. Nd4 {[%clk 0:01:18.7]} 20... Rge8 {[%clk 0:02:00.9]} 21.
b4 {[%clk 0:01:06.8]} 21... Nxd3 {[%clk 0:01:42.9]} 22. cxd3 {[%clk 0:01:06.8]}
22... Bf8 {[%clk 0:01:43.1]} 23. Rc1+ {[%clk 0:01:06.2]} 23... Kb8 {[%clk
0:01:43.4]} 24. N2b3 {[%clk 0:00:34.2]} 24... Ka8 {[%clk 0:01:12.7]} 25. Na5
{[%clk 0:00:32.8]} 25... Nb8 {[%clk 0:01:13.2]} 26. Ndb3 {[%clk 0:00:25.6]}
26... e5 {[%clk 0:01:10.5]} 27. Nxb7 {[%clk 0:00:24.7]} 27... Qxb7 {[%clk
0:01:07.8]} 28. Na5 {[%clk 0:00:25.1]} 28... Qb6 {[%clk 0:01:06.9]} 29. Qf3
{[%clk 0:00:20.5]} 29... Rc8 {[%clk 0:01:04.7]} 30. d4 {[%clk 0:00:21]} 30... d5
{[%clk 0:00:46.1]} 31. a3 {[%clk 0:00:19.6]} 31... f5 {[%clk 0:00:41.1]} 32.
exf5 {[%clk 0:00:17.3]} 32... e4 {[%clk 0:00:41.4]} 33. Qb3 {[%clk 0:00:17.6]}
33... Qd6 {[%clk 0:00:39.8]} 34. Rc5 {[%clk 0:00:13]} 34... Red8 {[%clk
0:00:31.6]} 35. Qe3 {[%clk 0:00:08.3]} 35... Nd7 {[%clk 0:00:30.6]} 36. Rxc8+
{[%clk 0:00:07.6]} 36... Rxc8 {[%clk 0:00:31.5]} 37. Nb3 {[%clk 0:00:08.2]}
37... Nb6 {[%clk 0:00:30.8]} 38. Nc5 {[%clk 0:00:08.9]} 38... Nc4 {[%clk
0:00:31.3]} 39. Qh3 {[%clk 0:00:06.9]} 39... Qf6 {[%clk 0:00:31]} 40. Nd7 {[%clk
0:00:05.9]} 40... Qc6 {[%clk 0:00:28.4]} 41. f6 {[%clk 0:00:06.5]} 41... Nxb2
{[%clk 0:00:24.9]} 42. Nb6+ {[%clk 0:00:02.9]} 42... Kb7 {[%clk 0:00:06]} 43.
Qxc8+ {[%clk 0:00:03.8]} 43... Qxc8 {[%clk 0:00:06.4]} 44. Nxc8 {[%clk
0:00:04.4]} 44... Nd3 {[%clk 0:00:05.3]} 45. Ne7 {[%clk 0:00:04.4]} 45... e3
{[%clk 0:00:04.7]} 46. Rh2 {[%clk 0:00:03.5]} 46... Nxf4 {[%clk 0:00:04.6]} 47.
Kc2 {[%clk 0:00:03.9]} 47... gxf6 {[%clk 0:00:04]} 48. Nf5 {[%clk 0:00:04.5]}
48... Nxg6 {[%clk 0:00:04.6]} 49. Nxe3 {[%clk 0:00:04.8]} 49... Kc6 {[%clk
0:00:05.1]} 50. Rf2 {[%clk 0:00:05]} 50... Be7 {[%clk 0:00:05]} 51. h5 {[%clk
0:00:05.6]} 51... Nh4 {[%clk 0:00:03.5]} 52. Rf4 {[%clk 0:00:05.6]} 52... f5
{[%clk 0:00:03.5]} 53. Nxf5 {[%clk 0:00:06]} 53... Ng2 {[%clk 0:00:03.5]} 54.
Rf2 {[%clk 0:00:06.1]} 1-0

[Event "Early-Titled-Tuesday-Blitz-February-13-2024"]
[Site "Chess.com"]
[Date "2024.02.13"]
[Round "7"]
[White "TimGrutter03"]
[Black "masterofpuppets2"]
[Result "1-0"]
[WhiteElo "2647"]
[BlackElo "2452"]
[TimeControl "180+1"]
[EndTime "9:21:27 PST"]
[Termination "TimGrutter03 won by resignation"]

1. c4 {[%clk 0:03:00.9]} 1... e6 {[%clk 0:02:58.6]} 2. Nc3 {[%clk 0:02:59.3]}
2... d5 {[%clk 0:02:58.7]} 3. cxd5 {[%clk 0:03:00.2]} 3... exd5 {[%clk
0:02:58.7]} 4. d4 {[%clk 0:03:00.7]} 4... Bb4 {[%clk 0:02:58.2]} 5. Qa4+ {[%clk
0:02:59.2]} 5... Nc6 {[%clk 0:02:58]} 6. e3 {[%clk 0:02:59.4]} 6... Bf5 {[%clk
0:02:49.3]} 7. Bb5 {[%clk 0:02:56.2]} 7... Bxc3+ {[%clk 0:02:33.1]} 8. bxc3
{[%clk 0:02:57.1]} 8... Ne7 {[%clk 0:02:33.4]} 9. Ba3 {[%clk 0:02:54.5]} 9...
O-O {[%clk 0:02:32.4]} 10. Nf3 {[%clk 0:02:40.2]} 10... Bd7 {[%clk 0:02:12.2]}
11. O-O {[%clk 0:02:37]} 11... Re8 {[%clk 0:02:09.4]} 12. Qc2 {[%clk 0:02:31.7]}
12... Bf5 {[%clk 0:02:04.7]} 13. Qe2 {[%clk 0:02:10.9]} 13... Ng6 {[%clk
0:01:31.2]} 14. c4 {[%clk 0:01:48]} 14... Be4 {[%clk 0:01:01.1]} 15. Nd2 {[%clk
0:01:43.1]} 15... Bxg2 {[%clk 0:01:00.4]} 16. Rfe1 {[%clk 0:01:21.7]} 16... Qg5
{[%clk 0:00:55.7]} 17. f4 {[%clk 0:01:21.8]} 17... Nxf4 {[%clk 0:00:50]} 18.
exf4 {[%clk 0:01:22]} 18... Rxe2 {[%clk 0:00:49.7]} 19. fxg5 {[%clk 0:01:22.6]}
19... Rxd2 {[%clk 0:00:48]} 20. Bc1 {[%clk 0:01:10.3]} 20... Rc2 {[%clk
0:00:35.9]} 21. Ba4 {[%clk 0:01:09.9]} 21... Rxc4 {[%clk 0:00:34.8]} 22. Bxc6
{[%clk 0:01:08.8]} 22... bxc6 {[%clk 0:00:31.1]} 23. Kxg2 {[%clk 0:01:09.4]}
23... Rxd4 {[%clk 0:00:31.6]} 24. Be3 {[%clk 0:01:05.1]} 24... Rc4 {[%clk
0:00:26.8]} 25. Rac1 {[%clk 0:01:00.4]} 25... Ra4 {[%clk 0:00:25.5]} 26. Re2
{[%clk 0:00:46.2]} 26... Ra6 {[%clk 0:00:24]} 27. Rec2 {[%clk 0:00:45]} 27...
Re8 {[%clk 0:00:21.8]} 28. Bf2 {[%clk 0:00:39.1]} 28... Re5 {[%clk 0:00:16.6]}
29. h4 {[%clk 0:00:33.7]} 29... Re6 {[%clk 0:00:12.1]} 30. Rb1 {[%clk
0:00:34.2]} 30... h6 {[%clk 0:00:11.9]} 31. gxh6 {[%clk 0:00:31.4]} 31... Rxh6
{[%clk 0:00:11.7]} 32. Rb7 {[%clk 0:00:32]} 32... Rg6+ {[%clk 0:00:11.2]} 33.
Kf1 {[%clk 0:00:29.3]} 33... Rf6 {[%clk 0:00:09.7]} 34. Kg2 {[%clk 0:00:28.9]}
34... Rg6+ {[%clk 0:00:09.5]} 35. Kh2 {[%clk 0:00:29.5]} 35... Rf6 {[%clk
0:00:08.6]} 36. Rxc7 {[%clk 0:00:27.4]} 36... Kh7 {[%clk 0:00:08.3]} 37. Kg2
{[%clk 0:00:24.8]} 37... Rg6+ {[%clk 0:00:08.1]} 38. Kf1 {[%clk 0:00:25.2]}
38... Rf6 {[%clk 0:00:08.5]} 39. Ke1 {[%clk 0:00:23.2]} 39... Re6+ {[%clk
0:00:06.5]} 40. Kd1 {[%clk 0:00:23]} 40... Rf6 {[%clk 0:00:06.5]} 41. Rxa7
{[%clk 0:00:18.9]} 41... Rxa7 {[%clk 0:00:03.3]} 42. Bxa7 {[%clk 0:00:19.8]}
42... Rf1+ {[%clk 0:00:01.2]} 43. Ke2 {[%clk 0:00:19.3]} 43... Rh1 {[%clk
0:00:01.8]} 44. Bf2 {[%clk 0:00:19.3]} 44... Rh3 {[%clk 0:00:02]} 45. Rxc6
{[%clk 0:00:16.4]} 45... Ra3 {[%clk 0:00:02.9]} 46. Rc2 {[%clk 0:00:16.5]} 46...
Kg6 {[%clk 0:00:03.5]} 47. Bc5 {[%clk 0:00:15.3]} 47... Ra4 {[%clk 0:00:03]} 48.
a3 {[%clk 0:00:13.7]} 48... Kf5 {[%clk 0:00:03.1]} 49. Bb4 {[%clk 0:00:13.6]}
49... Ra6 {[%clk 0:00:02.8]} 50. Rc7 {[%clk 0:00:12.1]} 50... Kg6 {[%clk
0:00:02]} 51. Rd7 {[%clk 0:00:12.2]} 51... Re6+ {[%clk 0:00:01.3]} 52. Kf3
{[%clk 0:00:11.9]} 52... Re4 {[%clk 0:00:02.2]} 53. h5+ {[%clk 0:00:10.5]} 53...
Kxh5 {[%clk 0:00:02.3]} 54. Rxd5+ {[%clk 0:00:10.5]} 54... f5 {[%clk 0:00:01.5]}
55. Rxf5+ {[%clk 0:00:10.3]} 55... Kg6 {[%clk 0:00:01.8]} 56. Kxe4 {[%clk
0:00:10]} 1-0